fUSD/lending_fUSD_20240921
["ID","MTS","AMOUNT","RATE_DAILY","PERIOD"]
[338788802,1726913500899,-500.0,0.00014794,2]
[338788803,1726913500909,-500.0,0.00014794,2]
[338788804,1726913500920,-157.96,0.00014794,2]
[338788805,1726913500930,-500.0,0.00014794,2]
[338788806,1726913500939,-500.0,0.00014794,2]
[338788807,1726913500950,-500.0,0.00014794,2]
[338788808,1726913500960,-500.0,0.00014794,2]
[338788809,1726913500970,-500.0,0.00014794,2]
[338788810,1726913500980,-500.0,0.00014794,2]
[338788811,1726913500991,-500.0,0.00014794,2]
[338788812,1726913501001,-444.88,0.00014794,2]
[338788813,1726913501012,-500.0,0.00014794,2]
[338788814,1726913501022,-500.0,0.00014794,2]
[338788815,1726913501036,-500.0,0.00014794,2]
[338788816,1726913501048,-500.0,0.00014794,2]
[338788817,1726913501058,-500.0,0.00014794,2]
[338788818,1726913501068,-500.0,0.00014794,2]
[338788819,1726913501080,-500.0,0.00014794,2]
[338788820,1726913501091,-500.0,0.00014794,2]
[338788821,1726913501103,-500.0,0.00014794,2]
[338788822,1726913501114,-500.0,0.00014794,2]
[338788823,1726913501124,-304.83,0.00014794,2]
[338788824,1726913501134,-500.0,0.00014794,2]
[338788825,1726913501144,-500.0,0.00014794,2]
[338788826,1726913501154,-500.0,0.00014794,2]
[338788827,1726913501165,-500.0,0.00014794,2]
[338788828,1726913501174,-500.0,0.00014794,2]
[338788829,1726913501183,-500.0,0.00014794,2]
[338788830,1726913501193,-500.0,0.00014794,2]
[338788831,1726913501203,-500.0,0.00014794,2]
[338788832,1726913501212,-500.0,0.00014794,2]
[338788833,1726913501224,-500.0,0.00014794,2]
[338788834,1726913501234,-500.0,0.00014794,2]
[338788835,1726913501244,-500.0,0.00014794,2]
[338788836,1726913501255,-500.0,0.00014794,2]
[338788837,1726913501265,-500.0,0.00014794,2]
[338788838,1726913501274,-500.0,0.00014794,2]
[338788839,1726913501283,-308.9,0.00014794,2]
[338788840,1726913501293,-500.0,0.00014794,2]
[338788841,1726913501302,-500.0,0.00014794,2]
[338788842,1726913501311,-500.0,0.00014794,2]
[338788843,1726913501321,-500.0,0.00014794,2]
[338788844,1726913501330,-500.0,0.00014794,2]
[338788845,1726913501339,-500.0,0.00014794,2]
[338788846,1726913501349,-500.0,0.00014794,2]
[338788847,1726913501358,-573.68,0.00014794,2]
[338788848,1726913501368,-339.46,0.00014794,2]
[338788849,1726913501377,-500.0,0.00014794,2]
[338788850,1726913501388,-500.0,0.00014794,2]
[338788851,1726913501397,-500.0,0.00014794,2]
[338788852,1726913501407,-500.0,0.00014794,2]
[338788853,1726913501417,-500.0,0.00014794,2]
[338788854,1726913501427,-500.0,0.00014794,2]
[338788855,1726913501437,-500.0,0.00014794,2]
[338788856,1726913501447,-500.0,0.00014794,2]
[338788857,1726913501457,-500.0,0.00014794,2]
[338788858,1726913501467,-500.0,0.00014794,2]
[338788859,1726913501477,-500.0,0.00014794,2]
[338788860,1726913501488,-329.48,0.00014794,2]
[338788861,1726913501498,-500.0,0.00014794,2]
[338788862,1726913501509,-383.11,0.00014794,2]
[338788863,1726913501519,-500.0,0.00014794,2]
[338788864,1726913501530,-500.0,0.00014794,2]
[338788865,1726913501539,-500.0,0.00014794,2]
[338788866,1726913501549,-500.0,0.00014794,2]
[338788867,1726913501559,-590.22,0.00014794,2]
[338788868,1726913501569,-590.22,0.00014794,2]
[338788869,1726913501580,-500.0,0.00014794,2]
[338788870,1726913501590,-590.22,0.00014794,2]
[338788871,1726913501600,-500.0,0.00014794,2]
[338788872,1726913501610,-500.0,0.00014794,2]
[338788873,1726913501619,-590.22,0.00014794,2]
[338788874,1726913501628,-500.0,0.00014794,2]
[338788875,1726913501637,-500.0,0.00014794,2]
[338788876,1726913501647,-590.22,0.00014794,2]
[338788877,1726913501657,-500.0,0.00014794,2]
[338788878,1726913501668,-590.22,0.00014794,2]
[338788879,1726913501678,-500.0,0.00014794,2]
[338788880,1726913501688,-500.0,0.00014794,2]
[338788881,1726913501700,-590.22,0.00014794,2]
[338788882,1726913501709,-500.0,0.00014794,2]
[338788883,1726913501719,-213.48,0.00014794,2]
[338788884,1726913502533,-590.22,0.00014794,2]
[338788885,1726913502553,-500.0,0.00014794,2]
[338788886,1726913502571,-590.22,0.00014794,2]
[338788887,1726913502587,-590.22,0.00014794,2]
[338788888,1726913502606,-590.22,0.00014794,2]
[338788889,1726913502623,-590.22,0.00014794,2]
[338788890,1726913502638,-590.22,0.00014794,2]
[338788891,1726913502647,-590.22,0.00014794,2]
[338788892,1726913502656,-590.22,0.00014794,2]
[338788893,1726913502665,-500.0,0.00014794,2]
[338788894,1726913502674,-590.22,0.00014794,2]
[338788895,1726913502683,-590.22,0.00014794,2]
[338788896,1726913502692,-500.0,0.00014794,2]
[338788897,1726913502707,-500.0,0.00014794,2]
[338788898,1726913502717,-500.0,0.00014794,2]
[338788899,1726913502726,-590.22,0.00014794,2]
[338788900,1726913502736,-500.0,0.00014794,2]
[338788901,1726913502745,-500.0,0.00014794,2]
[338788902,1726913502754,-590.22,0.00014794,2]
[338788903,1726913502763,-500.0,0.00014794,2]
[338788904,1726913502773,-627.68,0.00014794,2]
[338788905,1726913502782,-590.22,0.00014794,2]
[338788906,1726913502792,-284.36,0.00014794,2]
[338788907,1726913502801,-590.22,0.00014794,2]
[338788908,1726913502811,-500.0,0.00014794,2]
[338788909,1726913502820,-500.0,0.00014794,2]
[338788910,1726913502829,-590.22,0.00014794,2]
[338788911,1726913502838,-500.0,0.00014794,2]
[338788912,1726913502848,-500.0,0.00014794,2]
[338788913,1726913502857,-590.22,0.00014794,2]
[338788914,1726913502866,-500.0,0.00014794,2]
[338788915,1726913502877,-500.0,0.00014794,2]
[338788916,1726913502885,-500.0,0.00014794,2]
[338788917,1726913502894,-590.43,0.00014794,2]
[338788918,1726913502902,-500.0,0.00014794,2]
[338788919,1726913502911,-500.0,0.00014794,2]
[338788920,1726913502920,-500.0,0.00014794,2]
[338788921,1726913502930,-500.0,0.00014794,2]
[338788922,1726913502939,-500.0,0.00014794,2]
[338788923,1726913502950,-500.0,0.00014794,2]
[338788924,1726913502959,-500.0,0.00014794,2]
[338788925,1726913502968,-500.0,0.00014794,2]
[338788926,1726913502977,-500.0,0.00014794,2]
[338788927,1726913502987,-555.37,0.00014794,2]
[338788928,1726913502996,-500.0,0.00014794,2]
[338788929,1726913503005,-500.0,0.00014794,2]
[338788930,1726913503014,-500.0,0.00014794,2]
[338788931,1726913503026,-500.0,0.00014794,2]
[338788932,1726913503036,-500.0,0.00014794,2]
[338788933,1726913503045,-500.0,0.00014794,2]
[338788934,1726913503055,-500.0,0.00014794,2]
[338788935,1726913503065,-500.0,0.00014794,2]
[338788936,1726913503075,-500.0,0.00014794,2]
[338788937,1726913503084,-338.77,0.00014794,2]
[338788938,1726913503094,-500.0,0.00014794,2]
[338788939,1726913503107,-500.0,0.00014794,2]
[338788940,1726913503116,-500.0,0.00014794,2]
[338788941,1726913503126,-500.0,0.00014794,2]
[338788942,1726913503135,-500.0,0.00014794,2]
[338788943,1726913503145,-500.0,0.00014794,2]
[338788944,1726913503154,-500.0,0.00014794,2]
[338788945,1726913503165,-398.08,0.00014794,2]
[338788946,1726913503174,-500.0,0.00014794,2]
[338788947,1726913503184,-500.0,0.00014794,2]
[338788948,1726913503194,-500.0,0.00014794,2]
[338788949,1726913503204,-500.0,0.00014794,2]
[338788950,1726913503213,-500.0,0.00014794,2]
[338788951,1726913503223,-500.0,0.00014794,2]
[338788952,1726913503232,-632.24,0.00014794,2]
[338788953,1726913503242,-500.0,0.00014794,2]
[338788954,1726913503252,-500.0,0.00014794,2]
[338788955,1726913503262,-500.0,0.00014794,2]
[338788956,1726913503271,-500.0,0.00014794,2]
[338788957,1726913503282,-500.0,0.00014794,2]
[338788958,1726913503292,-500.0,0.00014794,2]
[338788959,1726913503301,-500.0,0.00014794,2]
[338788960,1726913503311,-500.0,0.00014794,2]
[338788961,1726913503320,-575.96,0.00014794,2]
[338788962,1726913503330,-500.0,0.00014794,2]
[338788963,1726913503339,-500.0,0.00014794,2]
[338788964,1726913503348,-500.0,0.00014794,2]
[338788965,1726913503357,-500.0,0.00014794,2]
[338788966,1726913503368,-500.0,0.00014794,2]
[338788967,1726913503378,-500.0,0.00014794,2]
[338788968,1726913503387,-500.0,0.00014794,2]
[338788969,1726913503396,-500.0,0.00014794,2]
[338788970,1726913503405,-500.0,0.00014794,2]
[338788971,1726913503415,-500.0,0.00014794,2]
[338788972,1726913503425,-500.0,0.00014794,2]
[338788973,1726913503434,-500.0,0.00014794,2]
[338788974,1726913503443,-500.0,0.00014794,2]
[338788975,1726913503454,-500.0,0.00014794,2]
[338788976,1726913503463,-500.0,0.00014794,2]
[338788977,1726913503473,-500.0,0.00014794,2]
[338788978,1726913503483,-500.0,0.00014794,2]
[338788979,1726913503492,-500.0,0.00014794,2]
[338788980,1726913503502,-500.0,0.00014794,2]
[338788981,1726913503511,-500.0,0.00014794,2]
[338788982,1726913503520,-500.0,0.00014794,2]
[338788983,1726913503530,-500.0,0.00014794,2]
[338788984,1726913503539,-500.0,0.00014794,2]
[338788985,1726913503548,-254.14182494,0.00014794,2]
[338788986,1726913503677,-245.85817506,0.00014794,2]
[338788987,1726913503688,-500.0,0.00014794,2]
[338788988,1726913503698,-252.37024391,0.00014794,2]
[338788989,1726913503711,-239.05975609,0.00014794,2]
[338788990,1726913503720,-500.0,0.00014794,2]
[338788991,1726913503729,-500.0,0.00014794,2]
[338788992,1726913503739,-500.0,0.00014794,2]
[338788993,1726913503748,-500.0,0.00014794,2]
[338788994,1726913503758,-500.0,0.00014794,2]
[338788995,1726913503768,-299.02429894,0.00014794,2]
[338788996,1726913504641,500.0,0.00011164,2]
[338788999,1726913590050,500.0,0.00011164,2]
[338789000,1726913595992,500.0,0.00011164,2]
[338789006,1726913837266,217.19,0.00011603,2]
[338789018,1726914388696,206.33,0.00011633,2]
[338789030,1726914631631,-800.0,0.00012585,2]
[338789031,1726914631643,-300.0,0.000126,4]
[338789032,1726914631653,-700.0,0.000127,4]
[338789033,1726914631663,-501.5913891,0.000127,2]
[338789034,1726914631672,-459.71954723,0.000127,2]
[338789035,1726914631684,-319.21099951,0.000127,2]
[338789036,1726914631694,-153.15,0.0001277,2]
[338789037,1726914631703,-153.15,0.0001277,2]
[338789038,1726914631713,-153.15,0.0001277,2]
[338789039,1726914631723,-500.0,0.00012773,2]
[338789040,1726914631732,-179.12329709,0.00012779,2]
[338789041,1726914631741,-16713.29718175,0.0001278,2]
[338789042,1726914631753,-23618.08236882,0.0001278,2]
[338789043,1726914631765,-66405.54247833,0.0001278,2]
[338789044,1726914637173,1099.13214775,0.000153,120]
[338789045,1726914637708,-500.0,0.00012773,2]
[338789046,1726914637718,-986186.54014912,0.0001278,2]
[338789047,1726914637727,-1100.0,0.000128,4]
[338789048,1726914637736,-459.71954721,0.000128,2]
[338789049,1726914637746,-153.15,0.0001286,2]
[338789050,1726914637755,-73259.62560061,0.0001287,2]
[338789051,1726914637766,-1400.0,0.000129,4]
[338789052,1726914637775,-459.71954721,0.000129,2]
[338789053,1726914637785,-1203.9713268,0.000129,2]
[338789054,1726914637794,-500.0,0.00012973,2]
[338789055,1726914637803,-500.0,0.00012973,2]
[338789056,1726914637813,-153.15,0.0001299,2]
[338789057,1726914637826,-153.15,0.0001299,2]
[338789058,1726914637836,-153.15,0.0001299,2]
[338789059,1726914637845,-153.15,0.0001299,2]
[338789060,1726914637855,-153.15,0.0001299,2]
[338789061,1726914637865,-153.15,0.0001299,2]
[338789062,1726914637875,-153.15,0.0001299,2]
[338789063,1726914637884,-153.15,0.0001299,2]
[338789064,1726914637894,-153.15,0.0001299,2]
[338789065,1726914637903,-153.15,0.0001299,2]
[338789066,1726914637913,-501.59138904,0.00012998,2]
[338789067,1726914637923,-500.0,0.00012999,2]
[338789068,1726914637935,-647.54517936,0.00012999,2]
[338789069,1726914637945,-500.0,0.00012999,2]
[338789070,1726914637954,-500.0,0.00012999,2]
[338789071,1726914637964,-890468.926747,0.00013,2]
[338789072,1726914637980,-1037.18609026,0.00013,2]
[338789073,1726914638005,-5285.90972682,0.00013,2]
[338789074,1726914638163,-662807.17135979,0.00013,2]
[338789075,1726914638175,-719392.66080256,0.00013,2]
[338789076,1726914638185,-34583.05063736,0.00013,2]
[338789077,1726914638194,-501.59138904,0.00013296,2]
[338789078,1726914638203,-6022.77,0.00013457,2]
[338789079,1726914638213,-200.0,0.00013481,2]
[338789080,1726914638222,-500.0,0.0001351,2]
[338789081,1726914638231,-269.32,0.00013511,2]
[338789082,1726914638241,-364.51,0.00013511,2]
[338789083,1726914638251,-250.0,0.00013563,2]
[338789084,1726914638260,-501.59138904,0.00013594,2]
[338789085,1726914638270,-151.45,0.0001363,2]
[338789086,1726914638279,-883.85,0.00013699,2]
[338789087,1726914638288,-150.0,0.00013699,2]
[338789088,1726914638297,-200.0,0.00013699,2]
[338789089,1726914638307,-153.15,0.0001379,2]
[338789090,1726914638316,-224703.692617,0.000138,2]
[338789092,1726914638326,-203.95,0.00013834,2]
[338789094,1726914638335,-153.15,0.0001389,2]
[338789095,1726914638344,-153.15,0.0001389,2]
[338789098,1726914638355,-501.59138904,0.00013893,2]
[338789099,1726914638364,-206.33,0.00013897,2]
[338789102,1726914638373,-1203.97132679,0.000139,2]
[338789104,1726914638383,-611.44,0.000139,2]
[338789105,1726914638391,-22128.61088405,0.000139,2]
[338789212,1726914639646,-300.00157952,0.000139,2]
[338789480,1726914642777,-312.82733305,0.000139,2]
[338789510,1726915199120,185.69,0.00011376,2]
[338789513,1726915378443,238.98,0.00010959,2]
[338789516,1726915427154,1078.3635951,0.00012,2]
[338789524,1726915733146,176.4,0.00011334,2]
[338789535,1726915831705,-1007.7,0.00013,2]
[338789536,1726915831715,-250.0,0.00013245,2]
[338789537,1726915831725,-500.0,0.00013252,2]
[338789538,1726915831735,-1000.0,0.00013268,2]
[338789539,1726915831745,-182.25,0.00013297,2]
[338789540,1726915831755,-192.97,0.00013366,2]
[338789541,1726915831764,-176.4,0.00013598,2]
[338789542,1726915831774,-150.0,0.00013616,2]
[338789543,1726915831784,-421.86233158,0.00013653,2]
[338789544,1726915831793,-441.05,0.00013698,2]
[338789545,1726915831804,-300.0,0.00013698,2]
[338789546,1726915831813,-787.1922635,0.00013698,2]
[338789547,1726915831826,-60.6077365,0.00013698,2]
[338789548,1726915831834,-219.08883626,0.00013699,2]
[338789549,1726915831847,-1075.43,0.00013699,2]
[338789550,1726915831858,-1143.0,0.00013699,2]
[338789551,1726915831870,-54.20116374,0.00013699,2]
[338789552,1726915831880,-150.99,0.00013699,2]
[338789553,1726915831889,-50.78443055,0.00013699,2]
[338789554,1726915831900,-215.84556945,0.00013699,2]
[338789555,1726915831910,-707.08,0.00013699,2]
[338789556,1726915831920,-150.0,0.00013699,2]
[338789557,1726915831930,-200.0,0.00013699,2]
[338789558,1726915831939,-432.39,0.00013699,2]
[338789559,1726915831949,-3335.44970489,0.00013895,2]
[338789560,1726915831961,-298.62086198,0.00013895,2]
[338789561,1726915831972,-741.4673214,0.00013895,2]
[338789562,1726915831988,-3605.61418377,0.00013895,2]
[338789563,1726915831999,-328.01300429,0.00013895,2]
[338789564,1726915832011,-1830.23790357,0.00013895,2]
[338789565,1726915832020,-550.29,0.000139,2]
[338789566,1726915832030,-500.0,0.00013904,2]
[338789567,1726915832040,-500.0,0.00013904,2]
[338789568,1726915832050,-151.77,0.00013918,30]
[338789570,1726915832060,-558.29179062,0.00014,2]
[338789572,1726915832070,-160.381514,0.00014049,2]
[338789574,1726915832080,-171.931792,0.00014049,2]
[338789576,1726915832090,-150.0,0.00014059,2]
[338789578,1726915832099,-150.0,0.00014181,2]
[338789579,1726915832109,-1258.0,0.00014182,2]
[338789580,1726915832119,-621.0,0.00014182,2]
[338789581,1726915832128,-809.0,0.00014182,2]
[338789582,1726915832138,-558.0,0.00014182,2]
[338789583,1726915832152,-1888.605,0.00014182,2]
[338789584,1726915832161,-553.0,0.00014182,2]
[338789585,1726915832171,-806.0,0.00014182,2]
[338789586,1726915832180,-3335.0,0.00014182,2]
[338789587,1726915832190,-248.0,0.00014182,2]
[338789588,1726915832199,-5801.038,0.00014182,2]
[338789589,1726915832208,-3952.781,0.00014182,2]
[338789590,1726915832218,-150.0,0.00014182,2]
[338789591,1726915832229,-150.0,0.00014182,2]
[338789592,1726915832239,-709.324,0.00014182,2]
[338789593,1726915832248,-171.931792,0.00014284,2]
[338789594,1726915832258,-266.63,0.00014384,2]
[338789595,1726915832267,-161.54354975,0.00014384,2]
[338789596,1726915832277,-707.08,0.00014384,2]
[338789597,1726915832287,-167.65889033,0.0001441,2]
[338789598,1726915832297,-188.09677089,0.00014418,2]
[338789599,1726915832307,-150.0,0.0001442,2]
[338789600,1726915832318,-319.2109995,0.0001442,2]
[338789601,1726915832327,-161.54354975,0.00014466,2]
[338789602,1726915832337,-188.09677089,0.00014487,2]
[338789603,1726915832346,-153.37452521,0.00014492,2]
[338789604,1726915832355,-168.30004499,0.000145,2]
[338789605,1726915832365,-13786.64567932,0.0001451,2]
[338789606,1726915832758,-405.94479273,0.0001451,2]
[338789607,1726915832772,-849.97896667,0.0001451,2]
[338789608,1726915832784,-358.03106852,0.0001451,2]
[338789609,1726915832797,-6225.7093259,0.0001451,2]
[338789610,1726915832810,-6960.74467116,0.0001451,2]
[338789611,1726915832823,-3828.51859484,0.0001451,2]
[338789612,1726915832836,-495.72833055,0.0001451,2]
[338789613,1726915832848,-2314.4383043,0.0001451,2]
[338789614,1726915832859,-552.46305185,0.0001451,2]
[338789615,1726915832871,-162918.75790116,0.0001451,2]
[338789616,1726915832882,-41654.82935117,0.0001451,2]
[338789617,1726915832895,-328.4348001,0.0001451,2]
[338789618,1726915832906,-2339.76732267,0.0001451,2]
[338789619,1726915832918,-6178.9825058,0.0001451,2]
[338789620,1726915832930,-8606.23695535,0.0001451,2]
[338789621,1726915832942,-360.246502,0.0001451,2]
[338789622,1726915832954,-721.05675791,0.0001451,2]
[338789623,1726915832963,-216.748727,0.0001451,2]
[338789624,1726915832973,-152.6,0.0001451,2]
[338789625,1726915832983,-152.6,0.0001451,2]
[338789626,1726915832994,-3427.57591876,0.00014511,2]
[338789627,1726915833006,-791.79945132,0.00014511,2]
[338789628,1726915833017,-8.21953816,0.00014511,2]
[338789629,1726915833027,-8472.66375018,0.00014511,2]
[338789630,1726915833039,-6574.72479852,0.00014511,2]
[338789631,1726915833048,-171.931792,0.00014518,2]
[338789632,1726915833058,-500.0,0.00014519,2]
[338789633,1726915833067,-500.0,0.00014519,2]
[338789634,1726915833077,-500.0,0.00014519,2]
[338789635,1726915833087,-500.0,0.00014519,2]
[338789636,1726915833096,-500.0,0.00014519,2]
[338789637,1726915833105,-235.65727592,0.00014519,2]
[338789638,1726915833115,-341.59428465,0.00014519,2]
[338789639,1726915833124,-500.0,0.00014519,2]
[338789640,1726915833133,-500.0,0.00014519,2]
[338789641,1726915833144,-500.0,0.00014519,2]
[338789642,1726915833154,-500.0,0.00014519,2]
[338789643,1726915833163,-500.0,0.00014519,2]
[338789644,1726915833173,-500.0,0.00014519,2]
[338789645,1726915833183,-500.0,0.00014519,2]
[338789646,1726915833193,-500.0,0.00014519,2]
[338789647,1726915833202,-649.20259815,0.00014519,2]
[338789648,1726915833212,-278.17055259,0.00014519,2]
[338789649,1726915833222,-711.95,0.0001452,2]
[338789650,1726915833231,-711.95,0.0001452,2]
[338789651,1726915833241,-711.95,0.0001452,2]
[338789652,1726915833250,-711.95,0.0001452,2]
[338789653,1726915833260,-711.95,0.0001452,2]
[338789654,1726915833270,-711.95,0.0001452,2]
[338789655,1726915833279,-711.95,0.0001452,2]
[338789656,1726915833288,-711.95,0.0001452,2]
[338789657,1726915833298,-711.95,0.0001452,2]
[338789658,1726915833309,-587.48,0.0001452,2]
[338789659,1726915833320,-587.48,0.0001452,2]
[338789660,1726915833330,-587.48,0.0001452,2]
[338789661,1726915833339,-587.48,0.0001452,2]
[338789662,1726915833349,-1460.96,0.0001452,2]
[338789663,1726915833359,-587.48,0.0001452,2]
[338789664,1726915833369,-1460.96,0.0001452,2]
[338789665,1726915833379,-587.48,0.0001452,2]
[338789666,1726915833389,-1460.96,0.0001452,2]
[338789667,1726915833398,-587.48,0.0001452,2]
[338789668,1726915833408,-1460.96,0.0001452,2]
[338789669,1726915833694,-587.48,0.0001452,2]
[338789670,1726915833704,-587.48,0.0001452,2]
[338789671,1726915833713,-1460.96,0.0001452,2]
[338789672,1726915833723,-587.48,0.0001452,2]
[338789673,1726915833732,-1460.96,0.0001452,2]
[338789674,1726915833741,-587.48,0.0001452,2]
[338789675,1726915833750,-1460.96,0.0001452,2]
[338789676,1726915833760,-587.48,0.0001452,2]
[338789677,1726915833769,-1460.96,0.0001452,2]
[338789678,1726915833779,-587.48,0.0001452,2]
[338789679,1726915833788,-1460.96,0.0001452,2]
[338789680,1726915833797,-587.48,0.0001452,2]
[338789681,1726915833807,-587.48,0.0001452,2]
[338789682,1726915833816,-587.48,0.0001452,2]
[338789683,1726915833825,-587.48,0.0001452,2]
[338789684,1726915833835,-500.0,0.0001452,2]
[338789685,1726915833844,-500.0,0.0001452,2]
[338789686,1726915833853,-500.0,0.0001452,2]
[338789687,1726915833862,-253.74,0.0001452,2]
[338789688,1726915833872,-500.0,0.0001452,2]
[338789689,1726915833881,-500.0,0.0001452,2]
[338789690,1726915833890,-500.0,0.0001452,2]
[338789691,1726915833901,-500.0,0.0001452,2]
[338789692,1726915833910,-235.8363268,0.0001452,2]
[338789693,1726915833920,-2085.22,0.0001452,2]
[338789694,1726915833930,-2085.22,0.0001452,2]
[338789695,1726915833939,-2085.22,0.0001452,2]
[338789696,1726915833948,-2085.22,0.0001452,2]
[338789697,1726915833959,-2085.22,0.0001452,2]
[338789698,1726915833968,-2085.22,0.0001452,2]
[338789699,1726915833978,-2085.22,0.0001452,2]
[338789700,1726915833988,-2085.22,0.0001452,2]
[338789701,1726915833997,-2085.22,0.0001452,2]
[338789702,1726915834007,-2085.22,0.0001452,2]
[338789703,1726915834016,-2085.22,0.0001452,2]
[338789704,1726915834026,-2085.22,0.0001452,2]
[338789705,1726915834035,-2085.22,0.0001452,2]
[338789706,1726915834044,-2085.22,0.0001452,2]
[338789707,1726915834054,-2085.22,0.0001452,2]
[338789708,1726915834064,-500.0,0.0001452,2]
[338789709,1726915834074,-2085.22,0.0001452,2]
[338789710,1726915834084,-566.3,0.0001452,2]
[338789711,1726915834094,-2085.22,0.0001452,2]
[338789712,1726915834104,-1575.45,0.0001452,2]
[338789713,1726915834113,-1575.45,0.0001452,2]
[338789714,1726915834123,-1575.45,0.0001452,2]
[338789715,1726915834132,-1575.45,0.0001452,2]
[338789716,1726915834142,-1575.45,0.0001452,2]
[338789717,1726915834152,-1575.45,0.0001452,2]
[338789718,1726915834161,-1575.45,0.0001452,2]
[338789719,1726915834170,-1575.45,0.0001452,2]
[338789720,1726915834180,-1575.45,0.0001452,2]
[338789721,1726915834190,-1065.56,0.0001452,2]
[338789722,1726915834199,-1065.56,0.0001452,2]
[338789723,1726915834208,-1065.56,0.0001452,2]
[338789724,1726915834218,-1065.56,0.0001452,2]
[338789725,1726915834229,-1065.56,0.0001452,2]
[338789726,1726915834239,-1065.56,0.0001452,2]
[338789727,1726915834248,-1065.56,0.0001452,2]
[338789728,1726915834258,-1065.56,0.0001452,2]
[338789729,1726915834267,-1065.56,0.0001452,2]
[338789730,1726915834277,-1065.56,0.0001452,2]
[338789731,1726915834286,-1065.56,0.0001452,2]
[338789732,1726915834296,-1065.56,0.0001452,2]
[338789733,1726915834307,-1065.56,0.0001452,2]
[338789734,1726915834317,-1065.56,0.0001452,2]
[338789735,1726915834326,-1065.56,0.0001452,2]
[338789736,1726915834336,-1065.56,0.0001452,2]
[338789737,1726915834345,-1065.56,0.0001452,2]
[338789738,1726915834355,-500.0,0.0001452,2]
[338789739,1726915834364,-5003.8,0.0001452,2]
[338789740,1726915834374,-500.0,0.0001452,2]
[338789741,1726915834383,-5003.8,0.0001452,2]
[338789742,1726915834393,-5003.8,0.0001452,2]
[338789743,1726915834402,-532.1,0.0001452,2]
[338789744,1726915834412,-5003.8,0.0001452,2]
[338789745,1726915834421,-5003.8,0.0001452,2]
[338789746,1726915834431,-5003.8,0.0001452,2]
[338789747,1726915834441,-5003.8,0.0001452,2]
[338789748,1726915834450,-5003.8,0.0001452,2]
[338789749,1726915834460,-5003.8,0.0001452,2]
[338789750,1726915834469,-2636.98161041,0.0001452,2]
[338789754,1726915837832,-2366.81838959,0.0001452,2]
[338789755,1726915837842,-5003.8,0.0001452,2]
[338789756,1726915837852,-5003.8,0.0001452,2]
[338789757,1726915837861,-5003.8,0.0001452,2]
[338789758,1726915837871,-2923.80809543,0.0001452,2]
[338789759,1726915837883,-2079.99190457,0.0001452,2]
[338789760,1726915837893,-3798.35916481,0.0001452,2]
[338789761,1726915837904,-1205.44083519,0.0001452,2]
[338789762,1726915837916,-5003.8,0.0001452,2]
[338789763,1726915837927,-500.0,0.0001452,2]
[338789764,1726915837938,-5003.8,0.0001452,2]
[338789765,1726915837948,-500.0,0.0001452,2]
[338789766,1726915837960,-500.0,0.0001452,2]
[338789767,1726915837970,-500.0,0.0001452,2]
[338789768,1726915837980,-500.0,0.0001452,2]